bitfinex/quotes_SOLUSD_20260102
["timestamp","ask_amount","ask_price","bid_price","bid_amount"]
[1767379751049,0.69084353,131.11,131.07,0.69832446]
[1767379752047,0.69084353,131.11,131.07,8.3272971]
[1767379752346,2.96457861,131.1,131.07,7.62897264]
[1767379753245,0.68915139,131.09,131.06,8.32812401]
[1767379753627,3.1337929,131.09,131.05,0.69832446]
[1767379754045,0.69084353,131.09,131.05,0.69832446]
[1767379754544,0.69084353,131.09,131.06,7.6300482]
[1767379756031,3.13210076,131.07,131.03,0.69832446]
[1767379756346,0.52494635,131.04,131.02,0.1]
[1767379756646,2.44294937,131.05,131.02,0.1]
[1767379756647,0.69084353,131.05,131.02,8.43071462]
[1767379757749,0.66084353,131.05,131.02,8.43071462]
[1767379758136,3.1037929,131.05,131.02,8.43071462]
[1767379758341,3.1037929,131.05,131.02,0.1]
[1767379758553,3.1037929,131.05,131.02,7.73233235]
[1767379759553,3.1337929,131.04,131.02,0.1]
[1767379760042,2.44294937,131.03,131.02,0.1]
[1767379761057,0.58985439,131.02,130.98,8.43282054]
[1767379761347,3.03280376,131.02,130.99,0.69832446]
[1767379761525,3.03280376,131.02,130.98,0.1]
[1767379761526,2.93585786,131.01,130.98,0.1]
[1767379761930,0.49290849,131.01,130.98,7.73456625]
[1767379762237,2.90585786,131.01,130.98,7.73456625]
[1767379762854,2.87585786,131.01,130.98,7.73456625]
[1767379763446,2.87585786,131.01,130.98,0.79832446]
[1767379764241,0.43290849,131.01,130.98,0.79832446]
[1767379764566,0.43290849,131.01,130.98,0.1]
[1767379765757,0.43290849,131.01,130.98,7.73475339]
[1767379765935,3.1337929,131.03,130.99,0.69832446]
[1767379766251,0.69084353,131.03,130.99,0.69832446]
[1767379766628,3.1337929,131.04,130.99,0.69832446]
[1767379766824,0.69084353,131.04,130.99,0.69832446]
[1767379767054,3.1337929,131.04,130.99,0.69832446]
[1767379767754,3.1337929,131.04,131.0,8.32187308]
[1767379768060,7.63030937,131.06,131.01,0.6882853]
[1767379768354,2.80639315,131.06,131.01,0.6882853]
[1767379769658,0.657655,131.05,131.02,7.63242253]
[1767379769832,3.10060437,131.05,131.02,8.35110613]
[1767379770152,0.657655,131.05,131.02,8.35110613]
[1767379770352,0.66460128,131.06,131.02,8.35110613]
[1767379770657,3.10755065,131.06,131.02,8.35110613]
[1767379771651,3.07755065,131.06,131.02,8.35110613]
[1767379772179,2.44294937,131.06,131.02,8.35110613]
[1767379772353,2.44294937,131.04,131.01,7.63276943]
[1767379772732,2.44294937,131.03,131.0,8.35208174]
[1767379772933,2.44294937,131.02,131.0,7.63339814]
[1767379773430,2.44294937,131.03,131.0,7.63339814]
[1767379773631,3.10420273,131.02,130.99,7.6338746]
[1767379773830,0.65797206,131.0,130.98,7.73439003]
[1767379774628,2.44294937,131.02,130.99,7.63417054]
[1767379775461,2.44294937,131.03,130.99,7.63417054]
[1767379776549,3.8199044,131.03,130.99,7.63417054]
[1767379776760,0.099,131.02,130.99,7.63417054]
[1767379777061,0.069,131.02,130.99,7.63417054]
[1767379778757,3.8199044,131.03,130.99,8.35285414]
[1767379779056,3.8199044,131.02,130.99,8.35285414]
[1767379781363,3.8199044,131.01,130.98,8.45314024]
[1767379781746,3.8199044,131.01,130.99,7.63415086]
[1767379782161,3.8199044,131.03,131.0,0.7186836]
[1767379782460,7.63154354,131.04,131.0,0.7186836]
[1767379782461,0.099,131.04,131.0,0.7186836]
[1767379782643,3.9189044,131.04,131.0,8.35182552]
[1767379782838,3.8199044,131.03,131.0,8.35182552]
[1767379783367,3.8199044,131.02,131.0,7.63314192]
[1767379784162,3.8199044,131.02,130.98,0.1]
[1767379784163,0.66155741,131.0,130.98,0.1]
[1767379784373,4.08413133,130.99,130.97,0.1]
[1767379784565,3.8199044,130.98,130.97,0.1]
[1767379785056,0.6575841,130.98,130.95,17.64092213]
[1767379785269,4.4774885,130.98,130.95,17.64092213]
[1767379785638,4.4774885,130.98,130.95,25.2772999]
[1767379786066,4.4774885,130.98,130.95,17.64092213]
[1767379786238,3.8199044,130.97,130.95,25.99605416]
[1767379786439,4.4774885,130.98,130.95,25.99605416]
[1767379787560,4.4774885,130.98,130.95,39.93605416]
[1767379787965,0.66460128,130.99,130.95,39.93605416]
[1767379788348,3.8199044,130.98,130.95,32.29960573]
[1767379788551,3.8199044,130.97,130.95,17.64092213]
[1767379788764,3.8199044,130.97,130.95,31.58092213]
[1767379789261,8.2959995,130.97,130.95,17.64092213]
[1767379789568,0.16520703,130.95,130.93,0.1]
[1767379789751,0.16520703,130.96,130.93,0.1]
[1767379789944,3.8199044,130.95,130.93,0.1]
[1767379790446,0.16520703,130.96,130.93,0.1]
[1767379790647,3.8199044,130.95,130.93,0.1]
[1767379790844,3.8199044,130.94,130.93,0.1]
[1767379791049,3.8199044,130.94,130.92,14.04]
[1767379791376,7.73553561,130.95,130.92,0.1]
[1767379791568,3.91955985,130.93,130.88,20.29512988]
[1767379791871,3.8199044,130.91,130.88,34.23512988]
[1767379792260,3.8199044,130.9,130.88,20.29512988]
[1767379792845,3.8199044,130.9,130.88,19.57644628]
[1767379793040,0.16520703,130.93,130.89,0.72104356]
[1767379793247,0.099,130.96,130.91,0.72104356]
[1767379793466,3.92020226,130.92,130.88,19.57644628]
[1767379793673,3.8199044,130.89,130.88,20.29748984]
[1767379793853,3.8199044,130.89,130.88,19.57644628]
[1767379794169,0.16326007,130.91,130.86,22.30276163]
[1767379794375,3.8199044,130.89,130.87,0.72104356]
[1767379794567,3.8199044,130.9,130.87,0.72104356]
[1767379794871,0.16326007,130.91,130.87,0.72104356]
[1767379795178,73.25551983,130.96,130.78,24.21237703]
[1767379795179,5.59031861,130.9,130.78,24.21237703]
[1767379795359,3.8199044,130.8,130.78,20.23071625]
[1767379795561,0.06520703,130.84,130.78,20.23071625]
[1767379795869,3.8199044,130.81,130.79,0.72104356]
[1767379796054,0.06520703,130.84,130.79,0.72104356]
[1767379796371,3.8199044,130.84,130.79,0.72104356]
[1767379796574,0.06520703,130.87,130.8,0.72104356]
[1767379796782,13.94,130.88,130.81,0.72104356]
[1767379796950,7.70521008,130.89,130.82,0.72104356]
[1767379797150,7.70521008,130.89,130.83,0.72104356]
[1767379797151,9.14609106,130.86,130.83,0.72104356]
[1767379797461,9.14609106,130.86,130.79,33.05347547]
[1767379797462,0.06520703,130.87,130.81,0.72104356]
[1767379797668,9.14609106,130.84,130.81,0.72104356]
[1767379797847,9.14609106,130.85,130.81,8.36558001]
[1767379798049,9.14609106,130.85,130.82,0.72104356]
[1767379798274,0.06520703,130.86,130.8,0.72104356]
[1767379798474,9.14609106,130.84,130.8,0.72104356]
[1767379799089,0.06520703,130.86,130.81,0.72104356]
[1767379799290,9.14609106,130.85,130.81,0.72104356]
[1767379799654,9.14609106,130.85,130.82,0.6571413]
[1767379800263,9.14609106,130.85,130.8,9.14609106]
[1767379800457,9.14609106,130.84,130.79,13.94]
[1767379800775,9.84611205,130.84,130.79,13.94]
[1767379801073,9.84611205,130.84,130.78,48.49188468]
[1767379801074,9.14609106,130.8,130.78,20.23071625]
[1767379801280,9.14609106,130.79,130.78,20.23071625]
[1767379801489,9.14609106,130.79,130.78,20.09692578]
[1767379801682,0.58855786,130.79,130.78,2e-08]
[1767379801974,7.64533146,130.8,130.75,7.64814301]
[1767379802197,7.64533146,130.8,130.74,17.93195897]
[1767379802198,9.14609106,130.76,130.74,17.93195897]
[1767379802382,9.14609106,130.75,130.74,17.35199791]
[1767379802682,35.10861967,130.8,130.74,18.00913921]
[1767379802854,5.54792132,130.79,130.75,0.6571413]
[1767379803062,9.14609106,130.8,130.75,9.80323236]
[1767379803381,9.14609106,130.79,130.75,8.30477635]
[1767379804077,9.14609106,130.78,130.74,17.35199791]
[1767379804261,9.14609106,130.75,130.74,17.35199791]
[1767379804683,9.14609106,130.75,130.74,1e-08]
[1767379804979,3.984,130.7,130.67,20.88498623]
[1767379805283,9.14609106,130.68,130.66,0.1]
[1767379805592,9.14609106,130.69,130.66,0.1]
[1767379805879,11.63533586,130.7,130.66,0.1]
[1767379806068,3.984,130.7,130.66,0.7571413]
[1767379806265,9.14609106,130.69,130.66,0.7571413]
[1767379806465,11.63529627,130.7,130.66,0.1]
[1767379807182,9.14609106,130.68,130.66,0.1]
[1767379807379,9.14609106,130.67,130.66,0.1]
[1767379808157,7.65245409,130.68,130.66,0.1]
[1767379808351,16.79854515,130.68,130.66,0.1]
[1767379808554,9.14609106,130.67,130.66,0.1]
[1767379809459,9.14609106,130.68,130.66,0.1]
[1767379809761,9.14609106,130.67,130.66,0.1]
[1767379809968,7.65169485,130.69,130.66,0.1]
[1767379810170,9.14609106,130.67,130.66,0.1]
[1767379810359,7.65169485,130.69,130.66,0.1]
[1767379810559,9.14609106,130.68,130.66,0.1]
[1767379810886,7.65069678,130.71,130.66,0.7571413]
[1767379811095,7.65069678,130.71,130.66,0.1]
[1767379811381,9.14609106,130.67,130.64,0.6571413]
[1767379811571,35.1271453,130.71,130.62,0.6571413]
[1767379811772,9.14609106,130.64,130.62,0.6571413]
[1767379811973,9.14609106,130.64,130.6,0.6571413]
[1767379812273,9.14609106,130.65,130.61,0.6571413]
[1767379812480,9.14609106,130.65,130.61,8.31338835]
[1767379812985,9.14609106,130.64,130.61,0.6571413]
[1767379813170,9.14609106,130.64,130.61,8.31348414]
[1767379813572,9.14609106,130.65,130.61,8.31348414]
[1767379813873,9.14609106,130.64,130.62,0.6571413]
[1767379814189,7.65286599,130.67,130.61,0.6571413]
[1767379814388,9.14609106,130.63,130.6,0.6571413]
[1767379814556,7.65286599,130.67,130.61,0.6571413]
[1767379814761,9.14609106,130.67,130.62,0.6571413]
[1767379815282,9.14609106,130.68,130.63,0.6571413]
[1767379815473,9.14609106,130.67,130.63,0.6571413]
[1767379815974,13.96,130.69,130.63,0.6571413]
[1767379816380,9.14609106,130.67,130.63,8.31227558]
[1767379816767,7.65052406,130.71,130.66,0.6571413]
[1767379816964,9.14609106,130.72,130.67,0.6571413]
[1767379817573,9.14609106,130.7,130.67,0.6571413]
[1767379817782,9.14609106,130.71,130.67,0.6571413]
[1767379817986,9.14609106,130.7,130.67,0.6571413]
[1767379818186,13.96,130.73,130.67,0.6571413]
[1767379818488,16.79693654,130.71,130.67,0.6571413]
[1767379818683,13.96,130.73,130.68,0.6571413]
[1767379818861,9.14609106,130.72,130.68,0.6571413]
[1767379819293,9.14609106,130.71,130.68,0.6571413]
[1767379819476,40.73297101,130.73,130.68,0.6571413]
[1767379819690,9.14609106,130.71,130.68,0.6571413]
[1767379819866,40.73297101,130.73,130.68,0.6571413]
[1767379820067,9.14609106,130.71,130.68,0.6571413]
[1767379820292,9.14609106,130.71,130.66,0.6571413]
[1767379820498,16.79679513,130.71,130.66,0.6571413]
[1767379820673,9.14609106,130.71,130.67,0.6571413]
[1767379820991,26.77496792,130.72,130.6,13.96]
[1767379821174,26.77496792,130.72,130.64,0.6571413]
[1767379821375,9.14609106,130.67,130.64,0.6571413]
[1767379821678,9.14609106,130.67,130.62,8.31268871]
[1767379821881,9.14609106,130.67,130.63,0.6571413]
[1767379822388,9.14609106,130.67,130.63,8.31226604]
[1767379822895,16.79911574,130.67,130.63,0.6571413]
[1767379823099,9.14609106,130.66,130.63,0.6571413]
[1767379823391,7.65254597,130.68,130.63,8.31226191]
[1767379823587,7.65254597,130.68,130.64,0.6571413]
[1767379823785,9.14609106,130.67,130.64,0.6571413]
[1767379824367,26.78324691,130.68,130.62,0.6571413]
[1767379824785,9.14609106,130.68,130.63,0.6571413]
[1767379825197,9.14609106,130.67,130.63,0.6571413]
[1767379825689,26.78120106,130.69,130.63,0.6571413]
[1767379825895,9.14609106,130.66,130.63,0.6571413]
[1767379826398,26.78120106,130.69,130.63,0.6571413]
[1767379826693,26.78120106,130.69,130.64,0.6571413]
[1767379826900,9.14609106,130.67,130.64,0.6571413]
[1767379827094,9.14609106,130.68,130.64,0.6571413]
[1767379827895,9.14609106,130.67,130.64,0.6571413]
[1767379828403,9.14609106,130.66,130.64,0.6571413]
[1767379828580,9.14609106,130.67,130.64,0.6571413]
[1767379829896,16.79903358,130.67,130.64,0.6571413]
[1767379830494,38.249694,130.72,130.65,0.71261386]
[1767379830495,9.14609106,130.68,130.65,0.71261386]
[1767379831405,21.61110941,130.7,130.65,0.71261386]
[1767379831605,9.14609106,130.67,130.65,0.71261386]
[1767379831781,16.79903012,130.67,130.63,0.71261386]
[1767379831986,9.14609106,130.67,130.64,0.71261386]
[1767379832307,16.79863111,130.68,130.64,0.71261386]
[1767379832493,9.14609106,130.67,130.64,0.71261386]
[1767379832691,19.12976236,130.69,130.64,0.71261386]
[1767379832692,7.65197584,130.69,130.65,0.71261386]
[1767379832904,10.52124254,130.78,130.66,0.71261386]
[1767379832905,26.76864244,130.75,130.66,0.71261386]
[1767379833104,16.79427461,130.75,130.7,0.71261386]
[1767379833696,19.11849282,130.77,130.72,0.71261386]
[1767379833987,14.66122365,130.76,130.72,0.71261386]
[1767379834191,9.14609106,130.74,130.7,14.69261386]
[1767379834907,9.14609106,130.75,130.71,0.71261386]
[1767379835108,5.52413411,130.74,130.71,0.71261386]
[1767379835404,5.531984,130.73,130.69,0.71261386]
[1767379835611,5.53428682,130.72,130.69,0.71261386]
[1767379835908,13.98,130.78,130.69,8.36422135]
[1767379835909,7.64931075,130.74,130.69,8.36422135]
[1767379836110,5.53641554,130.73,130.69,8.36422135]
[1767379836287,5.53641554,130.72,130.69,8.36422135]
[1767379836488,16.79540181,130.74,130.7,0.71261386]
[1767379836717,5.54624833,130.73,130.7,0.71261386]
[1767379836905,5.54624833,130.72,130.7,0.71261386]
[1767379837096,7.64931075,130.74,130.7,0.71261386]
[1767379837297,14.69281061,130.73,130.7,0.71261386]
[1767379837615,5.54671955,130.72,130.7,0.71261386]
[1767379837801,5.54671955,130.71,130.7,0.71261386]
[1767379838310,16.79540181,130.74,130.7,0.71261386]
[1767379838311,8.33177063,130.75,130.7,8.36372327]
[1767379838489,13.96878951,130.75,130.7,8.36372327]
[1767379838888,8.33275378,130.73,130.69,13.96]
[1767379839512,0.68340016,130.72,130.67,19.59701888]
[1767379839802,0.68340016,130.72,130.67,13.96]
[1767379839803,0.68340016,130.71,130.67,13.96]
[1767379840809,0.68340016,130.71,130.68,7.65228037]
[1767379841105,6.32041904,130.7,130.64,19.13606998]
[1767379841320,6.32041904,130.68,130.64,7.65442812]
[1767379841494,26.77708101,130.71,130.57,36.5392562]
[1767379841495,6.32041904,130.66,130.57,21.5392562]
[1767379841702,0.68340016,130.65,130.61,7.65615742]
[1767379841888,6.32041904,130.67,130.62,7.65563986]
[1767379842212,0.68340016,130.66,130.62,7.65563986]
[1767379842684,6.32041904,130.66,130.62,7.65563986]
[1767379842885,6.32041904,130.66,130.6,19.14177274]
[1767379843087,0.68340016,130.65,130.6,19.14177274]
[1767379843381,0.68340016,130.64,130.61,13.96]
[1767379843586,5.63701888,130.65,130.6,19.14177274]
[1767379843817,6.32041904,130.65,130.6,33.10177274]
[1767379844311,0.68340016,130.65,130.6,40.75874058]
[1767379844510,6.32041904,130.65,130.6,40.75874058]
[1767379845205,6.32041904,130.66,130.6,40.75874058]
[1767379845604,6.32041904,130.66,130.6,46.39575946]
[1767379845804,0.68340016,130.66,130.6,46.39575946]
[1767379846007,6.32041904,130.66,130.6,46.39575946]
[1767379846305,0.68340016,130.66,130.6,40.75874058]
[1767379846610,6.32041904,130.66,130.6,46.39575946]
[1767379846987,6.32041904,130.66,130.6,40.75874058]
[1767379847292,6.32041904,130.65,130.6,40.75874058]
[1767379847792,0.68340016,130.65,130.6,46.39575946]
[1767379849014,6.32041904,130.65,130.6,40.75874058]
[1767379849216,0.68340016,130.65,130.6,46.39575946]
[1767379849514,0.68340016,130.65,130.6,40.75874058]
[1767379849740,0.68340016,130.63,130.6,21.61696784]
[1767379850914,0.68340016,130.65,130.6,27.25398672]
[1767379851132,0.68340016,130.66,130.6,27.25398672]
[1767379851944,0.68340016,130.66,130.6,21.61696784]
[1767379852243,0.68340016,130.67,130.62,13.29281431]
[1767379852414,0.68340016,130.67,130.63,13.98]
[1767379853832,0.68340016,130.67,130.64,7.65462339]
[1767379854832,6.32041904,130.68,130.64,7.65462339]
[1767379855035,0.68340016,130.68,130.64,7.65462339]
[1767379855332,6.32041904,130.68,130.64,7.65462339]
[1767379855544,0.68340016,130.68,130.64,7.65462339]
[1767379855920,6.32041904,130.68,130.64,7.65462339]
[1767379856542,0.68340016,130.68,130.64,7.65462339]
[1767379857723,0.68340016,130.7,130.65,5.63701888]
[1767379858042,6.32041904,130.7,130.64,32.42820075]
[1767379858236,0.68340016,130.69,130.64,32.42820075]
[1767379859241,0.68340016,130.72,130.67,5.63701888]
[1767379859446,6.34397926,130.73,130.68,13.98]
[1767379859622,0.70696038,130.72,130.68,13.98]
[1767379860741,0.70696038,130.7,130.68,13.98]
[1767379860919,6.34397926,130.69,130.66,13.98]
[1767379861262,0.70696038,130.67,130.64,7.65438167]
[1767379861421,0.70696038,130.68,130.64,7.65438167]
[1767379861623,6.34397926,130.7,130.64,13.29140055]
[1767379861919,26.77511713,130.72,130.64,13.29140055]
[1767379861920,6.34397926,130.69,130.64,7.65438167]
[1767379862354,0.70696038,130.69,130.64,7.65438167]
[1767379862523,6.34397926,130.69,130.64,7.65438167]
[1767379862725,0.70696038,130.69,130.64,7.65438167]
[1767379862923,0.70696038,130.69,130.64,26.79094015]
[1767379863232,0.70696038,130.7,130.64,32.42795903]
[1767379863432,6.34397926,130.7,130.64,32.42795903]
[1767379863639,0.70696038,130.69,130.64,32.42795903]
[1767379863850,0.70696038,130.69,130.64,26.79094015]
[1767379864047,0.70696038,130.69,130.64,32.42795903]
[1767379864447,0.70696038,130.71,130.66,5.63701888]
[1767379864629,0.70696038,130.71,130.67,13.98]
[1767379864947,0.70696038,130.72,130.67,5.63701888]
[1767379865134,0.70696038,130.72,130.67,19.61701888]
[1767379865766,0.70696038,130.71,130.67,13.98]
[1767379865959,5.63701888,130.73,130.67,19.61701888]
[1767379866137,0.70696038,130.73,130.68,5.63701888]
[1767379866338,0.70696038,130.73,130.69,7.65169485]
[1767379866534,0.70696038,130.73,130.69,13.28871373]
[1767379866851,0.70696038,130.73,130.69,7.65169485]
[1767379867235,0.70696038,130.74,130.7,5.63701888]
[1767379867442,0.70696038,130.73,130.69,7.65169485]
[1767379868150,6.34397926,130.73,130.69,7.65169485]
[1767379868532,0.70696038,130.73,130.69,7.65169485]
[1767379872560,0.70696038,130.73,130.69,13.28871373]
[1767379873358,0.70696038,130.73,130.69,32.41795085]
[1767379873660,0.70696038,130.75,130.7,5.63701888]
[1767379874038,0.70696038,130.75,130.69,32.41795085]
[1767379874243,0.70696038,130.74,130.69,32.41795085]
[1767379874956,0.70696038,130.74,130.69,26.78093197]
[1767379875175,0.70696038,130.74,130.69,32.41795085]
[1767379875384,0.70696038,130.74,130.69,26.78093197]
[1767379877149,6.34397926,130.76,130.69,32.41795085]
[1767379877356,0.70696038,130.75,130.69,32.41795085]
[1767379878958,0.70696038,130.75,130.69,93.61795085]
[1767379880265,0.70696038,130.74,130.69,87.98093197]
[1767379880767,5.63701888,130.75,130.69,87.98093197]
[1767379881469,0.70696038,130.78,130.69,93.61795085]
[1767379881667,6.34397926,130.75,130.69,126.23940622]
[1767379882142,0.70696038,130.78,130.69,65.03940622]
[1767379882345,6.34397926,130.76,130.69,65.03940622]
[1767379882546,5.63701888,130.75,130.69,26.78093197]
[1767379883065,0.70696038,130.76,130.7,13.96]
[1767379883867,6.34397926,130.76,130.7,13.96]
[1767379884663,6.34397926,130.77,130.71,26.77683421]
[1767379885061,0.70696038,130.77,130.71,26.77683421]
[1767379885262,6.34397926,130.78,130.71,65.02945451]
[1767379885449,6.34397926,130.78,130.71,70.66647339]
[1767379885770,0.70696038,130.78,130.71,70.66647339]
[1767379885973,7.64540313,130.8,130.73,5.63701888]
[1767379885974,0.70696038,130.79,130.73,5.63701888]
[1767379886271,0.70696038,130.79,130.74,13.96]
[1767379886468,6.34397926,130.79,130.71,65.02945451]
[1767379886765,6.34397926,130.78,130.73,26.77273769]
[1767379887346,6.33857058,130.77,130.74,13.96]
[1767379888268,0.7015517,130.74,130.68,38.26017191]
[1767379888470,2.45542914,130.74,130.72,7.64985352]
[1767379888672,3.15698084,130.75,130.71,7.65052406]
[1767379888967,3.15698084,130.72,130.7,13.96]
[1767379889148,3.15698084,130.72,130.68,13.96]
[1767379889348,0.7015517,130.72,130.68,13.96]
[1767379889577,3.15698084,130.72,130.69,7.6514143]
[1767379889976,0.7015517,130.72,130.7,7.65099337]
[1767379890578,6.34786074,130.73,130.7,7.65099337]
[1767379890874,6.34786074,130.73,130.68,33.09012381]
[1767379890875,5.63887649,130.71,130.69,7.65169485]
[1767379891169,0.70898425,130.69,130.62,14.54894429]
[1767379891373,5.63887649,130.68,130.63,13.96]
[1767379891871,6.34786074,130.69,130.66,7.65313582]
[1767379892173,0.70898425,130.69,130.66,7.65313582]
[1767379892875,0.70898425,130.69,130.64,26.79036449]
[1767379893673,6.34786074,130.69,130.64,26.79036449]
[1767379894174,0.70898425,130.68,130.64,26.79036449]
[1767379894676,6.34786074,130.68,130.64,7.65462339]
[1767379895648,0.70898425,130.7,130.64,26.79118187]
[1767379895853,0.70898425,130.69,130.64,32.43005836]
[1767379896363,0.70898425,130.69,130.65,5.63887649]
[1767379896566,0.70898425,130.7,130.65,5.63887649]
[1767379896767,0.70898425,130.7,130.66,13.96]
[1767379896967,0.70898425,130.69,130.66,13.96]
[1767379897780,0.70898425,130.69,130.66,21.61310766]
[1767379898581,0.70898425,130.72,130.66,46.38561341]
[1767379898788,0.70898425,130.7,130.66,40.74673692]
[1767379899469,0.70898425,130.7,130.66,26.78673692]
[1767379899678,0.70898425,130.7,130.66,40.74673692]
[1767379899872,0.70898425,130.7,130.66,26.78673692]
[1767379900079,6.34786074,130.71,130.66,40.74673692]
[1767379900459,33.08243224,130.74,130.65,7.65377893]
[1767379900460,9.87890373,130.68,130.65,7.65377893]
[1767379900875,9.87890373,130.68,130.64,21.6143858]
[1767379901059,9.87890373,130.67,130.64,21.6143858]
[1767379901560,0.70898425,130.68,130.65,7.65389792]
[1767379902062,9.87890373,130.68,130.65,7.65389792]
[1767379902482,0.70898425,130.67,130.64,21.61449929]
[1767379903283,9.16991948,130.68,130.61,19.14036422]
[1767379903284,0.70898425,130.65,130.61,19.14036422]
[1767379903487,9.87890373,130.65,130.61,33.10036422]
[1767379903688,0.70898425,130.65,130.61,33.10036422]
[1767379904164,0.70898425,130.64,130.62,7.65548305]
[1767379904482,0.70898425,130.64,130.61,7.65616467]
[1767379904683,9.87890373,130.66,130.61,35.96703813]
[1767379904989,0.70898425,130.65,130.61,26.79711865]
[1767379905285,0.70898425,130.65,130.61,35.96703813]
[1767379905487,9.87890373,130.65,130.61,26.79711865]
[1767379905693,0.70898425,130.64,130.61,26.79711865]
[1767379905897,0.70898425,130.64,130.61,7.65616467]
[1767379906186,0.67898425,130.64,130.61,7.65616467]
[1767379906888,7.65488546,130.64,130.6,13.96]
[1767379907191,9.16991948,130.63,130.6,7.65695398]
[1767379907689,9.16991948,130.64,130.6,7.65695398]
[1767379907993,0.70898425,130.63,130.6,7.65695398]
[1767379908489,0.70898425,130.63,130.6,26.79937358]
[1767379908866,9.87890373,130.65,130.6,26.82937358]
[1767379909187,0.70898425,130.64,130.6,26.82937358]
[1767379909369,0.70898425,130.64,130.6,26.79937358]
[1767379909569,0.70898425,130.63,130.6,26.79937358]
[1767379909770,0.70898425,130.66,130.61,9.19991948]
[1767379909985,0.70898425,130.66,130.61,23.15991948]
[1767379910178,0.70898425,130.66,130.61,13.99]
[1767379910494,4.55038003,130.66,130.61,17.83139578]
[1767379911091,4.55038003,130.66,130.62,7.65579543]
[1767379911295,0.70898425,130.64,130.62,7.65579543]
[1767379911468,0.70898425,130.64,130.61,21.61614395]
[1767379912001,4.55038003,130.64,130.61,21.61614395]
[1767379912195,0.70898425,130.63,130.61,21.61614395]
[1767379912379,0.70898425,130.63,130.61,7.65614395]
[1767379912580,0.70898425,130.62,130.6,7.6565745]
[1767379913290,0.70898425,130.63,130.6,7.6565745]
[1767379915188,0.70898425,130.64,130.6,26.8289941]
[1767379915588,0.70898425,130.63,130.6,7.6565745]
[1767379916396,0.70898425,130.62,130.6,7.6565745]
[1767379916703,0.70898425,130.61,130.59,21.63743769]
[1767379916892,3.84139578,130.62,130.54,15.95342015]
[1767379916893,0.70898425,130.59,130.54,15.95342015]
[1767379917074,0.70898425,130.59,130.52,0.1]
[1767379917075,4.45038003,130.55,130.52,0.1]
[1767379917276,4.34628018,130.53,130.48,4.7188205]
[1767379917471,3.84139578,130.49,130.47,21.68454192]
[1767379917676,12.19153415,130.55,130.47,21.68454192]
[1767379917894,3.84139578,130.55,130.48,14.70348217]
[1767379918085,8.35013837,130.57,130.49,0.72348217]
[1767379918394,0.5,130.54,130.49,0.72348217]
[1767379918575,9.68945867,130.54,130.49,0.72348217]
[1767379918775,0.5,130.54,130.5,0.72348217]
[1767379918982,9.18945867,130.55,130.5,0.72348217]
[1767379918983,9.18945867,130.55,130.51,13.98]
[1767379919192,9.18945867,130.55,130.51,22.30990157]
[1767379919380,9.18945867,130.55,130.51,14.64804383]
[1767379919704,9.18945867,130.54,130.51,14.64804383]
[1767379920501,26.80597867,130.57,130.51,14.64804383]
[1767379920711,26.80597867,130.57,130.51,13.98]
[1767379920712,9.18945867,130.52,130.51,13.98]
[1767379921010,26.80597867,130.57,130.51,13.98]
[1767379921206,9.18945867,130.52,130.49,0.66804383]
[1767379921510,9.18945867,130.53,130.48,14.64804383]
[1767379921800,9.18945867,130.53,130.49,0.66804383]
[1767379922202,9.18945867,130.56,130.51,0.66804383]
[1767379922378,9.18945867,130.56,130.52,14.64804383]
[1767379922801,9.18945867,130.55,130.52,14.64804383]
[1767379923508,9.18945867,130.56,130.52,14.64804383]
[1767379923682,9.18945867,130.55,130.53,13.98]
[1767379924078,9.18945867,130.59,130.53,13.98]
[1767379924284,65.08662652,130.6,130.53,13.98]
[1767379924693,9.18945867,130.55,130.53,13.98]
[1767379925906,9.18945867,130.57,130.54,0.66804383]
[1767379926207,7.65579543,130.62,130.55,9.8575025]
[1767379926507,16.8452541,130.62,130.57,0.66804383]
[1767379926719,9.18945867,130.6,130.57,0.66804383]
[1767379926897,7.65579543,130.62,130.57,0.66804383]
[1767379927212,9.18945867,130.59,130.55,0.66804383]
[1767379927382,26.79528402,130.62,130.56,13.98]
[1767379927383,9.18945867,130.57,130.56,13.98]
[1767379927585,9.18945867,130.58,130.56,13.98]
[1767379927787,9.18945867,130.57,130.56,13.98]
[1767379927986,26.78913126,130.65,130.56,13.98]
[1767379928201,9.18945867,130.59,130.56,13.98]
[1767379928410,9.18945867,130.58,130.56,13.98]
[1767379928606,38.27508391,130.64,130.55,8.32774599]
[1767379928914,9.18945867,130.59,130.56,14.64804383]
[1767379929095,9.18945867,130.6,130.57,0.66804383]
[1767379929298,9.18945867,130.61,130.57,0.66804383]
[1767379929986,9.18945867,130.6,130.57,0.66804383]
[1767379930186,9.18945867,130.6,130.58,0.66804383]
[1767379930388,9.18945867,130.6,130.59,13.98]
[1767379930820,9.18945867,130.6,130.53,0.66804383]
[1767379931006,9.18945867,130.54,130.48,0.66804383]
[1767379931199,9.18945867,130.5,130.49,13.98]
[1767379931515,9.18945867,130.51,130.49,13.98]